[Event "7th Cattolica Open-A 2020"]
[Site "Cattolica"]
[Date "2020.09.01"]
[Round "2.2"]
[White "Degraeve, Jean-Marc"]
[Black "Alanic, Mickael"]
[Result "1-0"]
[ECO "C49"]
[WhiteElo "2530"]
[BlackElo "2306"]
[Annotator "RC"]
[PlyCount "55"]
[EventDate "2020.08.31"]
[EventType "swiss"]
[EventCountry "ITA"]
[SourceTitle "playchess.com"]
[Source "ChessBase"]
[SourceQuality "1"]
[TimeControl "5400+30"]

1. e4 {[%emt 0:00:00]} e5 {[%emt 0:00:00]} 2. Nf3 {[%emt 0:00:28]} Nc6 {[%emt 0:00:00]} 3. Nc3 {[%emt 0:00:23]} Nf6 {[%emt 0:00:35]} 4. Bb5 {[%emt 0:02:25]} Bb4 {[%emt 0:00:13]} 5. O-O {[%emt 0:02:09]} O-O {[%emt 0:01:23]} 6. Bxc6 {[%emt 0:01:21]} bxc6 {[%emt 0:01:02]} 7. Nxe5 {[%emt 0:02:09]} Bxc3 {[%emt 0:02:54]} 8. dxc3 {[%emt 0:01:38]} Re8 {[%emt 0:05:16]} 9. Bf4 {[%emt 0:01:08]} Nxe4 {[%emt 0:00:40]} 10. Re1 {[%emt 0:01:56]} Nf6 {[%emt 0:14:33]} 11. Qf3 {[%emt 0:11:05]} Rb8 {[%emt 0:16:28]} 12. b3 {[%emt 0:06:05]} Re6 {[%emt 0:19:15]} 13. c4 {[%emt 0:07:31]} c5 {[%emt 0:13:25]} 14. Bg5 {[%emt 0:06:14]} h6 {[%emt 0:01:20]} 15. Bxf6 {[%emt 0:04:21]} Qxf6 {[%emt 0:08:45]} 16. Qxf6 {[%emt 0:00:28]} Rxf6 {[%emt 0:03:06]} 17. Nd3 {[%emt 0:02:06]} Kf8 {[%emt 0:03:59]} 18. Nxc5 {[%emt 0:00:32]} Rf5 {[%emt 0:00:25]} 19. Na4 {[%emt 0:01:45]} Bb7 {[%emt 0:02:13]} 20. Re3 {[%emt 0:02:04]} Rg5 {[%emt 0:00:11]} 21. f3 {[%emt 0:00:12]} Re8 {[%emt 0:00:13]} 22. Rae1 {[%emt 0:00:06]} Re6 {[%emt 0:00:33]} 23. Kf2 {[%emt 0:00:56]} Rf5 {[%emt 0:01:14]} 24. Nc3 {[%emt 0:01:14]} a6 {[%emt 0:00:07]} 25. Rd1 {[%emt 0:00:40]} Rg5 {[%emt 0:03:09]} 26. Rxe6 {[%emt 0:01:21]} dxe6 {[%emt 0:00:07]} 27. Rd7 {[%emt 0:00:25]} Rc5 {[%emt 0:00:07]} 28. Na4 {[%emt 0:00:05]} 1-0

[Event "7th Cattolica Open-A 2020"]
[Site "Cattolica"]
[Date "2020.09.01"]
[Round "2.3"]
[White "Le Goff, Damien"]
[Black "Van Foreest, Lucas"]
[Result "1-0"]
[ECO "B06"]
[WhiteElo "2281"]
[BlackElo "2531"]
[Annotator "RC"]
[PlyCount "135"]
[EventDate "2020.08.31"]
[EventType "swiss"]
[EventCountry "ITA"]
[SourceTitle "playchess.com"]
[Source "ChessBase"]
[SourceQuality "1"]
[TimeControl "5400+30"]

1. e4 {[%emt 0:04:19]} g6 {[%emt 0:00:00]} 2. d4 {[%emt 0:00:24]} Bg7 {[%emt 0:00:00]} 3. Nc3 {[%emt 0:00:26]} d6 {[%emt 0:00:00]} 4. Be3 {[%emt 0:00:41]} a6 {[%emt 0:00:14]} 5. Qd2 {[%emt 0:01:20]} b5 {[%emt 0:00:14]} 6. h4 {[%emt 0:00:56]} h5 {[%emt 0:12:29]} 7. Bd3 {[%emt 0:12:31]} Nc6 {[%emt 0:28:04]} 8. Nf3 {[%emt 0:22:25]} e5 {[%emt 0:00:15]} 9. d5 {[%emt 0:05:44]} Nce7 {[%emt 0:00:08]} 10. Ng5 {[%emt 0:07:39]} f6 {[%emt 0:01:11]} 11. Nh3 {[%emt 0:00:22]} Nh6 {[%emt 0:00:09]} 12. f3 {[%emt 0:00:39]} Nf7 {[%emt 0:00:28]} 13. a4 {[%emt 0:01:21]} b4 {[%emt 0:00:28]} 14. Ne2 {[%emt 0:01:02]} a5 {[%emt 0:00:19]} 15. Bb5+ {[%emt 0:06:19]} Bd7 {[%emt 0:07:21]} 16. c4 {[%emt 0:01:25]} O-O {[%emt 0:00:35]} 17. O-O-O {[%emt 0:02:52]} c6 {[%emt 0:02:29]} 18. dxc6 {[%emt 0:00:11]} Be6 {[%emt 0:01:36]} 19. b3 {[%emt 0:06:31]} Qc8 {[%emt 0:01:16]} 20. Kb1 {[%emt 0:00:32]} Nxc6 {[%emt 0:00:20]} 21. Ka2 {[%emt 0:03:13]} Na7 {[%emt 0:02:11]} 22. Nf2 {[%emt 0:03:09]} Rd8 {[%emt 0:00:58]} 23. Bxa7 {[%emt 0:01:17]} Rxa7 {[%emt 0:00:11]} 24. g4 {[%emt 0:00:45]} Bh6 {[%emt 0:02:06]} 25. Qd3 {[%emt 0:02:39]} Qc5 {[%emt 0:00:26]} 26. Rh2 {[%emt 0:03:49]} Kh8 {[%emt 0:01:15]} 27. Rg1 {[%emt 0:03:09]} Be3 {[%emt 0:06:30]} 28. Rgg2 {[%emt 0:00:31]} Rg8 {[%emt 0:02:43]} 29. Nd1 {[%emt 0:00:13]} Bh6 {[%emt 0:03:00]} 30. gxh5 {[%emt 0:00:07]} g5 {[%emt 0:03:17]} 31. Ne3 {[%emt 0:00:26]} gxh4 {[%emt 0:00:19]} 32. Rxg8+ {[%emt 0:00:27]} Kxg8 {[%emt 0:00:03]} 33. Nf5 {[%emt 0:00:55]} Bxf5 {[%emt 0:00:24]} 34. exf5 {[%emt 0:00:04]} Bg5 {[%emt 0:00:35]} 35. Qe4 {[%emt 0:01:43]} d5 {[%emt 0:00:24]} 36. Qxd5 {[%emt 0:01:21]} Qxd5 {[%emt 0:00:04]} 37. cxd5 {[%emt 0:00:04]} Rc7 {[%emt 0:00:32]} 38. Bd3 {[%emt 0:02:35]} Kg7 {[%emt 0:02:19]} 39. f4 {[%emt 0:02:03]} exf4 {[%emt 0:00:27]} 40. Nd4 {[%emt 0:00:02]} Rc3 {[%emt 0:01:22]} 41. Rh3 {[%emt 0:01:26]} f3 {[%emt 0:07:52]} 42. Rxf3 {[%emt 0:00:00]} Ne5 {[%emt 0:00:00]} 43. d6 {[%emt 0:00:00]} Kf7 {[%emt 0:00:00]} 44. d7 {[%emt 0:00:00]} Ke7 {[%emt 0:00:00]} 45. Ne6 {[%emt 0:00:47]} Kxd7 {[%emt 0:00:28]} 46. Bb5+ {[%emt 0:00:16]} Ke7 {[%emt 0:00:14]} 47. Rxc3 {[%emt 0:00:23]} bxc3 {[%emt 0:00:03]} 48. Kb1 {[%emt 0:01:24]} h3 {[%emt 0:00:49]} 49. Bf1 {[%emt 0:01:27]} h2 {[%emt 0:00:02]} 50. Bg2 {[%emt 0:00:04]} Ng4 {[%emt 0:01:02]} 51. Nd4 {[%emt 0:01:14]} Bf4 {[%emt 0:00:13]} 52. Bf3 {[%emt 0:01:16]} Nf2 {[%emt 0:01:53]} 53. Kc2 {[%emt 0:00:23]} h1=Q {[%emt 0:03:04]} 54. Bxh1 {[%emt 0:00:03]} Nxh1 {[%emt 0:00:11]} 55. Nc6+ {[%emt 0:01:57]} Kd7 {[%emt 0:00:19]} 56. Nxa5 {[%emt 0:00:09]} Ng3 {[%emt 0:00:21]} 57. Kxc3 {[%emt 0:00:04]} Nxf5 {[%emt 0:00:13]} 58. Kd3 {[%emt 0:00:21]} Ng3 {[%emt 0:00:19]} 59. Nc4 {[%emt 0:00:13]} Nxh5 {[%emt 0:00:11]} 60. Ke4 {[%emt 0:00:28]} Ke6 {[%emt 0:00:22]} 61. a5 {[%emt 0:00:07]} Bb8 {[%emt 0:00:20]} 62. b4 {[%emt 0:00:14]} Ng3+ {[%emt 0:00:10]} 63. Kd4 {[%emt 0:00:14]} Nf5+ {[%emt 0:01:23]} 64. Kc5 {[%emt 0:01:21]} Nd6 {[%emt 0:01:10]} 65. Nxd6 {[%emt 0:00:48]} Bxd6+ {[%emt 0:03:34]} 66. Kc6 {[%emt 0:00:13]} f5 {[%emt 0:01:04]} 67. a6 {[%emt 0:00:22]} Bb8 {[%emt 0:00:02]} 68. b5 {[%emt 0:00:23]} 1-0

[Event "7th Cattolica Open-A 2020"]
[Site "Cattolica"]
[Date "2020.09.02"]
[Round "3.6"]
[White "Carlo, Emanuele"]
[Black "Bettalli, Francesco"]
[Result "1-0"]
[ECO "B54"]
[WhiteElo "2280"]
[BlackElo "2206"]
[Annotator "ChessBase"]
[PlyCount "105"]
[EventDate "2020.08.31"]
[EventType "swiss"]
[EventCountry "ITA"]
[SourceTitle "playchess.com"]
[Source "ChessBase"]
[SourceQuality "1"]
[TimeControl "5400+30"]

1. e4 {[%emt 0:00:00]} c5 {[%emt 0:00:00]} 2. Nf3 {[%emt 0:00:00]} Nc6 {[%emt 0:00:00]} 3. Nc3 {[%emt 0:00:40]} d6 {[%emt 0:00:00]} 4. d4 {[%emt 0:00:21]} cxd4 {[%emt 0:00:05]} 5. Nxd4 {[%emt 0:00:45]} e5 {[%emt 0:00:08]} 6. Nf5 {[%emt 0:02:08]} g6 {[%emt 0:23:26]} 7. Ne3 {[%emt 0:03:07]} Nd4 {[%emt 0:02:04]} 8. Ned5 Be6 {[%emt 0:00:29]} 9. Be3 Bg7 {[%emt 0:00:20]} 10. Bb5+ Kf8 {[%emt 1:08:28]} 11. Bc4 {[%emt 0:17:56]} Rc8 {[%emt 0:00:00]} 12. Bb3 h6 {[%emt 0:01:00]} 13. O-O {[%emt 1:11:33]} Ne7 {[%emt 0:00:00]} 14. Nxe7 {[%emt 0:00:00]} Qxe7 {[%emt 0:00:00]} 15. f4 {[%emt 0:00:00]} Kg8 {[%emt 0:01:30]} 16. Qd3 {[%emt 0:01:30]} Nc6 {[%emt 0:00:00]} 17. f5 {[%emt 0:00:00]} gxf5 {[%emt 0:00:00]} 18. exf5 {[%emt 0:00:00]} Bxb3 {[%emt 0:00:00]} 19. axb3 {[%emt 0:00:00]} e4 {[%emt 0:00:00]} 20. Qd2 {[%emt 0:00:00]} Be5 {[%emt 0:00:00]} 21. Nd5 {[%emt 0:00:00]} Qh4 {[%emt 0:00:00]} 22. g3 {[%emt 0:00:00]} Qh3 {[%emt 0:00:00]} 23. Ra4 {[%emt 0:00:00]} Kh7 {[%emt 0:00:00]} 24. Rxe4 {[%emt 0:00:00]} Rhg8 {[%emt 0:00:00]} 25. Bf4 {[%emt 0:00:00]} Rg4 {[%emt 0:00:00]} 26. Qg2 {[%emt 0:00:00]} Qxg2+ {[%emt 0:00:00]} 27. Kxg2 {[%emt 0:00:00]} Nd4 {[%emt 0:06:00]} 28. c3 {[%emt 0:06:00]} Nxb3 {[%emt 0:00:00]} 29. h3 {[%emt 0:00:00]} Rxf4 {[%emt 0:00:00]} 30. gxf4 {[%emt 0:00:00]} Nd2 {[%emt 0:00:00]} 31. Re2 {[%emt 0:00:00]} Rg8+ {[%emt 0:00:00]} 32. Kf2 {[%emt 0:00:00]} Nxf1 {[%emt 0:02:30]} 33. fxe5 {[%emt 0:00:00]} Rg5 {[%emt 0:00:00]} 34. Kxf1 {[%emt 0:00:00]} Rxf5+ {[%emt 0:00:00]} 35. Ke1 {[%emt 0:00:00]} dxe5 {[%emt 0:00:00]} 36. Rf2 {[%emt 0:00:00]} Rxf2 {[%emt 0:00:00]} 37. Kxf2 {[%emt 0:00:00]} Kg6 {[%emt 0:00:00]} 38. Ne7+ {[%emt 0:00:00]} Kf6 {[%emt 0:00:00]} 39. Nc8 {[%emt 0:00:00]} a6 {[%emt 0:00:00]} 40. Nd6 {[%emt 0:00:00]} b6 {[%emt 0:00:00]} 41. c4 {[%emt 0:02:03]} Ke6 {[%emt 0:04:30]} 42. Nc8 {[%emt 0:00:11]} b5 {[%emt 0:00:00]} 43. cxb5 {[%emt 0:00:19]} axb5 {[%emt 0:00:00]} 44. Na7 {[%emt 0:00:07]} b4 {[%emt 0:00:00]} 45. Nc6 {[%emt 0:00:04]} Kd5 {[%emt 0:00:00]} 46. Nxb4+ {[%emt 0:00:10]} Kc5 {[%emt 0:00:00]} 47. Nd3+ {[%emt 0:01:21]} Kd4 {[%emt 0:00:00]} 48. Ke2 {[%emt 0:00:09]} f5 {[%emt 0:00:00]} 49. b4 {[%emt 0:02:38]} f4 {[%emt 0:00:00]} 50. Nxf4 {[%emt 0:00:30]} exf4 {[%emt 0:00:00]} 51. Kf3 {[%emt 0:00:30]} Kc4 {[%emt 0:00:00]} 52. Kxf4 {[%emt 0:00:30]} Kxb4 {[%emt 0:00:00]} 53. Kf5 {[%emt 0:00:30]} 1-0

[Event "7th Cattolica Open-A 2020"]
[Site "Cattolica"]
[Date "2020.09.02"]
[Round "3.8"]
[White "Pirrello, Christian"]
[Black "Krallis, Christos"]
[Result "1/2-1/2"]
[ECO "B38"]
[WhiteElo "2073"]
[BlackElo "2402"]
[Annotator "ChessBase"]
[PlyCount "159"]
[EventDate "2020.08.31"]
[EventType "swiss"]
[EventCountry "ITA"]
[SourceTitle "playchess.com"]
[Source "ChessBase"]
[SourceQuality "1"]
[TimeControl "5400+30"]

1. Nf3 {[%emt 0:02:46]} c5 {[%emt 0:06:58]} 2. c4 {[%emt 0:00:33]} g6 {[%emt 0:00:11]} 3. d4 {[%emt 0:01:54]} cxd4 {[%emt 0:00:30]} 4. Nxd4 {[%emt 0:00:11]} Bg7 {[%emt 0:00:24]} 5. e4 {[%emt 0:02:38]} Nc6 {[%emt 0:00:09]} 6. Be3 {[%emt 0:01:02]} Nf6 {[%emt 0:00:09]} 7. Nc3 {[%emt 0:01:10]} O-O {[%emt 0:00:11]} 8. Be2 {[%emt 0:01:00]} d6 {[%emt 0:00:11]} 9. Qd2 {[%emt 0:02:35]} Bd7 {[%emt 0:00:58]} 10. f3 {[%emt 0:02:23]} Nxd4 {[%emt 0:03:59]} 11. Bxd4 {[%emt 0:00:10]} Bc6 {[%emt 0:00:16]} 12. O-O {[%emt 0:03:50]} a5 {[%emt 0:00:11]} 13. Nd5 {[%emt 0:04:44]} Bxd5 {[%emt 0:00:39]} 14. cxd5 {[%emt 0:00:17]} Nd7 {[%emt 0:00:38]} 15. Be3 {[%emt 0:00:21]} Nc5 {[%emt 1:22:06]} 16. Rac1 {[%emt 0:03:29]} Qb6 {[%emt 0:00:00]} 17. b3 {[%emt 0:03:37]} Qb4 {[%emt 0:00:00]} 18. Rfd1 {[%emt 0:05:33]} b6 {[%emt 0:00:00]} 19. Rc4 {[%emt 0:05:17]} Qxd2 {[%emt 0:00:00]} 20. Rxd2 {[%emt 0:00:25]} f5 {[%emt 0:00:00]} 21. exf5 {[%emt 0:01:49]} gxf5 {[%emt 0:00:00]} 22. Rc1 {[%emt 0:06:51]} f4 {[%emt 0:00:00]} 23. Bf2 {[%emt 0:04:20]} Be5 {[%emt 0:00:00]} 24. Bb5 {[%emt 0:00:53]} Rf5 {[%emt 0:00:00]} 25. Bd4 {[%emt 0:03:24]} Raf8 {[%emt 0:00:00]} 26. Re1 {[%emt 0:00:43]} Bxd4+ {[%emt 0:00:00]} 27. Rxd4 {[%emt 0:00:19]} Re5 {[%emt 0:00:00]} 28. Rxe5 {[%emt 0:00:47]} dxe5 {[%emt 0:00:00]} 29. Rd2 {[%emt 0:00:45]} Kf7 {[%emt 0:00:00]} 30. d6 {[%emt 0:05:33]} e6 {[%emt 0:00:00]} 31. d7 {[%emt 0:04:31]} Ke7 {[%emt 0:00:00]} 32. Re2 {[%emt 0:01:26]} Kd6 {[%emt 0:00:00]} 33. Rd2+ {[%emt 0:00:18]} Kc7 {[%emt 0:00:00]} 34. Re2 {[%emt 0:00:24]} Nxd7 {[%emt 0:00:00]} 35. Bxd7 {[%emt 0:00:22]} Kxd7 {[%emt 0:00:00]} 36. Rxe5 {[%emt 0:00:18]} Rc8 {[%emt 0:00:00]} 37. Re2 {[%emt 0:00:32]} Rc5 {[%emt 0:00:00]} 38. g3 {[%emt 0:00:30]} e5 {[%emt 0:00:00]} 39. Kf2 {[%emt 0:00:49]} Kd6 {[%emt 0:00:00]} 40. gxf4 {[%emt 0:04:12]} exf4 {[%emt 0:00:00]} 41. Kg2 {[%emt 0:01:06]} Rc3 {[%emt 0:00:00]} 42. Rf2 {[%emt 0:07:00]} Kc5 {[%emt 0:13:30]} 43. Re2 {[%emt 0:07:37]} b5 {[%emt 0:00:30]} 44. Re5+ {[%emt 0:00:51]} Kc6 {[%emt 0:00:00]} 45. Re2 {[%emt 0:01:33]} Kd5 {[%emt 0:01:00]} 46. Rd2+ {[%emt 0:01:21]} Kc5 {[%emt 0:00:00]} 47. Re2 {[%emt 0:00:10]} a4 {[%emt 0:00:00]} 48. bxa4 {[%emt 0:00:31]} bxa4 {[%emt 0:00:00]} 49. Re7 {[%emt 0:03:23]} Rc2+ {[%emt 0:00:00]} 50. Kh3 {[%emt 0:00:00]} Rxa2 {[%emt 0:00:00]} 51. Rxh7 {[%emt 0:00:00]} Rb2 {[%emt 0:00:00]} 52. Ra7 {[%emt 0:00:00]} Kb4 {[%emt 0:00:00]} 53. Kg4 {[%emt 0:00:00]} Rxh2 {[%emt 0:00:00]} 54. Kxf4 {[%emt 0:00:00]} Rh5 {[%emt 0:00:00]} 55. Ke4 {[%emt 0:00:00]} a3 {[%emt 0:00:00]} 56. Kd3 {[%emt 0:00:00]} Rc5 {[%emt 0:00:00]} 57. Rb7+ {[%emt 0:00:00]} Ka4 {[%emt 0:00:24]} 58. Ra7+ {[%emt 0:00:00]} Kb3 {[%emt 0:03:02]} 59. Rb7+ {[%emt 0:00:00]} Ka2 {[%emt 0:00:25]} 60. Kd2 {[%emt 0:00:00]} Rc4 {[%emt 0:00:59]} 61. Rb8 {[%emt 0:00:00]} Ka1 {[%emt 0:00:48]} 62. Rb3 {[%emt 0:00:00]} Ka2 {[%emt 0:00:33]} 63. Rb8 {[%emt 0:00:00]} Rf4 {[%emt 0:00:24]} 64. Kc2 {[%emt 0:00:00]} Rxf3 {[%emt 0:00:08]} 65. Rb7 {[%emt 0:00:00]} Rf8 {[%emt 0:00:19]} 66. Rb6 {[%emt 0:00:00]} Rc8+ {[%emt 0:00:12]} 67. Kd2 {[%emt 0:00:00]} Rh8 {[%emt 0:00:43]} 68. Kc2 {[%emt 0:00:00]} Rh2+ {[%emt 0:00:07]} 69. Kc1 {[%emt 0:00:00]} Rb2 {[%emt 0:00:11]} 70. Rh6 {[%emt 0:00:00]} Rg2 {[%emt 0:00:31]} 71. Rb6 {[%emt 0:00:00]} Rg1+ {[%emt 0:00:10]} 72. Kc2 {[%emt 0:00:00]} Ka1 {[%emt 0:01:09]} 73. Ra6 {[%emt 0:00:00]} Rg3 {[%emt 0:00:24]} 74. Ra8 {[%emt 0:00:00]} a2 {[%emt 0:01:16]} 75. Rb8 {[%emt 0:00:00]} Rg7 {[%emt 0:00:29]} 76. Rb6 {[%emt 0:00:00]} Rc7+ {[%emt 0:00:04]} 77. Kd2 {[%emt 0:00:00]} Rh7 {[%emt 0:01:31]} 78. Kc2 {[%emt 0:00:00]} Rh2+ {[%emt 0:00:01]} 79. Kc1 {[%emt 0:00:00]} Rc2+ {[%emt 0:00:32]} 80. Kxc2 {[%emt 0:00:00]} 1/2-1/2

[Event "7th Cattolica Open-A 2020"]
[Site "Cattolica"]
[Date "2020.09.03"]
[Round "4.8"]
[White "Mendonca, Leon Luke"]
[Black "Nineuil, Vincent"]
[Result "1/2-1/2"]
[ECO "E17"]
[WhiteElo "2490"]
[BlackElo "1920"]
[Annotator "RC"]
[PlyCount "82"]
[EventDate "2020.08.31"]
[EventType "swiss"]
[EventCountry "ITA"]
[SourceTitle "playchess.com"]
[Source "ChessBase"]
[SourceQuality "1"]
[TimeControl "5400+30"]

1. Nf3 {[%emt 0:00:00]} d5 {[%emt 0:00:00]} 2. g3 {[%emt 0:00:39]} Nf6 {[%emt 0:00:00]} 3. Bg2 {[%emt 0:00:18]} e6 {[%emt 0:00:02]} 4. O-O {[%emt 0:00:22]} Be7 {[%emt 0:00:04]} 5. c4 {[%emt 0:00:27]} O-O {[%emt 0:00:05]} 6. b3 {[%emt 0:00:15]} b6 {[%emt 0:02:46]} 7. Bb2 {[%emt 0:00:26]} Bb7 {[%emt 0:00:15]} 8. cxd5 {[%emt 0:00:26]} exd5 {[%emt 0:00:37]} 9. d4 {[%emt 0:00:26]} Nbd7 {[%emt 0:04:22]} 10. Nc3 {[%emt 0:00:50]} Ne4 {[%emt 1:26:49]} 11. Nxe4 {[%emt 0:14:48]} dxe4 {[%emt 0:00:00]} 12. Nd2 {[%emt 0:01:09]} f5 {[%emt 0:00:00]} 13. Nc4 {[%emt 0:01:35]} Nf6 {[%emt 0:00:00]} 14. Qc2 {[%emt 0:07:37]} Bd5 {[%emt 0:00:00]} 15. Rac1 {[%emt 0:10:32]} Rc8 {[%emt 0:00:00]} 16. Ne3 {[%emt 0:13:56]} Qd7 {[%emt 0:00:00]} 17. Rfd1 {[%emt 0:11:19]} c6 {[%emt 0:00:00]} 18. Qd2 {[%emt 0:06:20]} b5 {[%emt 0:00:00]} 19. Bc3 {[%emt 0:01:11]} Be6 {[%emt 0:00:00]} 20. d5 {[%emt 0:22:54]} Nxd5 {[%emt 0:00:00]} 21. Nxd5 {[%emt 0:00:26]} Bxd5 {[%emt 0:00:00]} 22. e3 {[%emt 0:00:42]} Qe6 {[%emt 0:00:00]} 23. Bf1 {[%emt 0:01:10]} a6 {[%emt 0:00:00]} 24. Bb4 {[%emt 0:00:11]} Rfd8 {[%emt 0:00:00]} 25. Bxe7 {[%emt 0:00:33]} Qxe7 {[%emt 0:00:00]} 26. Qa5 {[%emt 0:00:09]} Ra8 {[%emt 0:00:00]} 27. Rd2 {[%emt 0:02:52]} g5 {[%emt 0:00:00]} 28. Rcd1 {[%emt 0:01:30]} Qe5 {[%emt 0:00:00]} 29. Bc4 {[%emt 0:00:32]} f4 {[%emt 0:00:00]} 30. Bxd5+ {[%emt 0:00:04]} cxd5 {[%emt 0:00:00]} 31. Qb6 {[%emt 0:00:17]} Rd6 {[%emt 0:00:00]} 32. Qb7 {[%emt 0:01:23]} Rad8 {[%emt 0:00:00]} 33. Kh1 {[%emt 0:00:33]} Qf5 {[%emt 0:00:00]} 34. gxf4 {[%emt 0:00:29]} gxf4 {[%emt 0:12:00]} 35. Rg1+ {[%emt 0:00:26]} Rg6 {[%emt 0:00:00]} 36. Rxg6+ {[%emt 0:00:06]} hxg6 {[%emt 0:00:00]} 37. Qc7 {[%emt 0:00:06]} Rd7 {[%emt 0:00:00]} 38. Qb8+ {[%emt 0:01:04]} Kh7 {[%emt 0:00:00]} 39. exf4 {[%emt 0:00:31]} e3 {[%emt 0:00:00]} 40. fxe3 {[%emt 0:00:47]} Qe4+ {[%emt 0:00:00]} 41. Rg2 {[%emt 0:00:00]} Qb1+ {[%emt 0:00:00]} 1/2-1/2

[Event "7th Cattolica Open-A 2020"]
[Site "Cattolica"]
[Date "2020.09.05"]
[Round "6.4"]
[White "Krallis, Christos"]
[Black "Van Foreest, Lucas"]
[Result "1/2-1/2"]
[ECO "E04"]
[WhiteElo "2402"]
[BlackElo "2531"]
[Annotator "RC"]
[PlyCount "54"]
[EventDate "2020.08.31"]
[EventType "swiss"]
[EventCountry "ITA"]
[SourceTitle "playchess.com"]
[Source "ChessBase"]
[SourceQuality "1"]
[TimeControl "5400+30"]

1. d4 {[%emt 0:00:00]} Nf6 {[%emt 0:00:07]} 2. c4 {[%emt 0:00:00]} e6 {[%emt 0:00:07]} 3. Nf3 {[%emt 0:00:30]} d5 {[%emt 0:00:07]} 4. g3 {[%emt 0:00:08]} dxc4 {[%emt 0:00:19]} 5. Bg2 {[%emt 0:00:34]} a6 {[%emt 0:00:18]} 6. O-O {[%emt 1:31:48]} Nc6 7. e3 {[%emt 0:00:00]} Rb8 {[%emt 0:00:34]} 8. Qe2 {[%emt 0:00:00]} b5 {[%emt 0:00:43]} 9. b3 {[%emt 0:00:00]} cxb3 {[%emt 0:00:15]} 10. axb3 {[%emt 0:00:00]} Bd6 {[%emt 1:32:30]} 11. Bd2 {[%emt 0:00:00]} Bb7 {[%emt 0:00:00]} 12. Rc1 {[%emt 0:00:00]} O-O {[%emt 0:00:00]} 13. Ne1 {[%emt 0:00:00]} Qd7 {[%emt 0:00:00]} 14. Nd3 {[%emt 0:00:00]} Rfd8 {[%emt 0:00:00]} 15. Nc5 {[%emt 0:00:00]} Bxc5 {[%emt 0:00:00]} 16. Rxc5 {[%emt 0:00:00]} Nxd4 {[%emt 0:00:00]} 17. exd4 {[%emt 0:00:00]} Qxd4 {[%emt 0:03:30]} 18. Qe5 {[%emt 0:06:00]} Ne4 {[%emt 0:00:00]} 19. Qxd4 Rxd4 20. Bxe4 {[%emt 0:00:00]} Bxe4 {[%emt 0:00:00]} 21. Nc3 {[%emt 0:00:00]} Bf3 {[%emt 0:00:00]} 22. Be3 {[%emt 0:00:00]} Rd3 {[%emt 0:00:00]} 23. b4 {[%emt 0:02:30]} Rbd8 24. Re1 {[%emt 0:00:00]} c6 {[%emt 0:00:00]} 25. Ne2 {[%emt 0:00:00]} Rd1 {[%emt 0:00:00]} 26. Kf1 {[%emt 0:00:00]} Bg2+ {[%emt 0:00:00]} 27. Kxg2 {[%emt 0:00:00]} Rxe1 {[%emt 0:00:00]} 1/2-1/2

[Event "7th Cattolica Open-A 2020"]
[Site "Cattolica"]
[Date "2020.09.05"]
[Round "6.8"]
[White "Le Goff, Damien"]
[Black "Carlo, Emanuele"]
[Result "1-0"]
[ECO "B23"]
[WhiteElo "2281"]
[BlackElo "2280"]
[Annotator "ChessBase"]
[PlyCount "81"]
[EventDate "2020.08.31"]
[EventType "swiss"]
[EventCountry "ITA"]
[SourceTitle "playchess.com"]
[Source "ChessBase"]
[SourceQuality "1"]
[TimeControl "5400+30"]

1. e4 {[%emt 0:01:36]} c5 {[%emt 0:00:00]} 2. Nc3 {[%emt 0:00:31]} d6 {[%emt 0:00:43]} 3. Nge2 {[%emt 0:00:26]} e5 {[%emt 0:04:10]} 4. g3 {[%emt 0:00:33]} g6 {[%emt 0:02:55]} 5. Bg2 {[%emt 0:04:55]} Bg7 {[%emt 0:01:34]} 6. O-O {[%emt 0:11:21]} Ne7 {[%emt 0:04:59]} 7. a3 {[%emt 0:10:20]} O-O {[%emt 0:07:17]} 8. b4 {[%emt 0:03:52]} Nbc6 {[%emt 0:02:49]} 9. Rb1 {[%emt 0:01:10]} Rb8 {[%emt 0:07:56]} 10. d3 {[%emt 0:02:01]} Be6 {[%emt 0:05:21]} 11. Nd5 {[%emt 0:01:44]} Nd4 {[%emt 0:57:46]} 12. c4 {[%emt 0:57:31]} Nxe2+ {[%emt 0:00:00]} 13. Qxe2 {[%emt 0:00:00]} Bxd5 {[%emt 0:00:00]} 14. cxd5 {[%emt 0:00:00]} cxb4 {[%emt 0:00:00]} 15. axb4 {[%emt 0:00:00]} f5 {[%emt 0:00:00]} 16. f3 {[%emt 0:00:00]} a5 {[%emt 0:00:00]} 17. bxa5 {[%emt 0:00:00]} Qxa5 {[%emt 0:00:00]} 18. Bd2 {[%emt 0:00:00]} Qa6 {[%emt 0:00:00]} 19. Ra1 {[%emt 0:00:00]} Qb6+ {[%emt 0:00:00]} 20. Be3 {[%emt 0:00:00]} Qd8 {[%emt 0:00:00]} 21. Rfb1 {[%emt 0:00:00]} b5 {[%emt 0:00:00]} 22. Bf2 {[%emt 0:00:00]} Qd7 {[%emt 0:00:00]} 23. Ra7 {[%emt 0:00:00]} Rb7 {[%emt 0:00:00]} 24. Rxb7 {[%emt 0:00:00]} Qxb7 {[%emt 0:00:00]} 25. Qb2 {[%emt 0:00:00]} Rb8 {[%emt 0:00:00]} 26. Qb4 {[%emt 0:00:00]} Qc7 {[%emt 0:00:00]} 27. Ra1 {[%emt 0:00:00]} fxe4 {[%emt 0:00:00]} 28. dxe4 {[%emt 0:00:00]} Nc8 {[%emt 0:00:00]} 29. Bf1 {[%emt 0:00:00]} Rb7 {[%emt 0:00:00]} 30. Ra8 {[%emt 0:00:00]} Bf8 {[%emt 0:00:00]} 31. Ra3 {[%emt 0:00:00]} Na7 {[%emt 0:03:10]} 32. Bh3 {[%emt 0:00:00]} Bh6 {[%emt 0:03:28]} 33. Kg2 {[%emt 0:00:00]} Bf8 {[%emt 0:00:07]} 34. Rc3 {[%emt 0:00:47]} Qb8 {[%emt 0:01:18]} 35. Be6+ {[%emt 0:01:12]} Kg7 {[%emt 0:00:33]} 36. f4 {[%emt 0:00:55]} Rc7 {[%emt 0:01:09]} 37. Rf3 {[%emt 0:01:58]} Qe8 {[%emt 0:02:40]} 38. Qb2 {[%emt 0:03:01]} Nc6 {[%emt 0:00:08]} 39. Rc3 {[%emt 0:02:03]} b4 {[%emt 0:00:40]} 40. Rc1 {[%emt 0:00:59]} Qe7 {[%emt 0:00:37]} 41. Bb6 {[%emt 0:01:12]} 1-0

[Event "7th Cattolica Open-A 2020"]
[Site "Cattolica"]
[Date "2020.09.05"]
[Round "6.10"]
[White "Louis, Corentin"]
[Black "Alanic, Mickael"]
[Result "0-1"]
[ECO "B20"]
[WhiteElo "2053"]
[BlackElo "2306"]
[Annotator "ChessBase"]
[PlyCount "44"]
[EventDate "2020.08.31"]
[EventType "swiss"]
[EventCountry "ITA"]
[SourceTitle "playchess.com"]
[Source "ChessBase"]
[SourceQuality "1"]
[TimeControl "5400+30"]

1. f4 {[%emt 0:02:25]} c5 {[%emt 0:01:19]} 2. Nf3 {[%emt 0:00:20]} Nc6 {[%emt 0:02:08]} 3. g3 {[%emt 0:02:15]} g6 {[%emt 0:01:32]} 4. Bg2 {[%emt 0:00:48]} Bg7 {[%emt 0:00:13]} 5. d3 {[%emt 0:00:12]} e6 {[%emt 0:06:35]} 6. e4 {[%emt 0:02:37]} Nge7 {[%emt 0:11:01]} 7. O-O {[%emt 0:03:57]} O-O {[%emt 0:03:08]} 8. c3 {[%emt 0:00:40]} d5 {[%emt 0:07:45]} 9. Be3 {[%emt 0:09:25]} d4 {[%emt 0:06:10]} 10. Bf2 {[%emt 0:00:56]} dxc3 {[%emt 0:01:51]} 11. bxc3 {[%emt 0:04:30]} b6 {[%emt 0:13:30]} 12. d4 {[%emt 0:10:36]} Ba6 {[%emt 0:07:19]} 13. Re1 {[%emt 0:00:33]} cxd4 {[%emt 0:00:30]} 14. cxd4 {[%emt 0:02:04]} Rc8 {[%emt 0:02:57]} 15. Qa4 {[%emt 0:02:29]} Bd3 {[%emt 0:08:38]} 16. Nbd2 {[%emt 0:02:29]} b5 {[%emt 0:01:50]} 17. Qa3 {[%emt 0:19:32]} Nxd4 18. Nxd4 {[%emt 0:00:37]} Bxd4 {[%emt 0:01:37]} 19. Bxd4 {[%emt 0:00:33]} Qxd4+ {[%emt 0:00:08]} 20. Kh1 {[%emt 0:00:05]} b4 {[%emt 0:02:07]} 21. Qa5 {[%emt 0:01:07]} Rc2 {[%emt 0:01:35]} 22. Rad1 {[%emt 0:00:40]} Qf2 {[%emt 0:01:52]} 0-1